fUST/lending_fUST_20240225
["ID","MTS","AMOUNT","RATE_DAILY","PERIOD"]
[315100979,1708817792112,-4821.83,0.00019556,2]
[315100980,1708817792143,-500.0,0.00019556,2]
[315100981,1708817792174,-1269.26,0.00019556,2]
[315100982,1708817792207,-1196.03,0.00019556,2]
[315100983,1708817792238,-500.0,0.00019556,2]
[315100984,1708817792269,-721.08,0.00019556,2]
[315100985,1708817792304,-500.0,0.00019556,2]
[315100986,1708817792335,-500.0,0.00019556,2]
[315100987,1708817792367,-500.0,0.00019556,2]
[315100988,1708817792399,-500.0,0.00019556,2]
[315100989,1708817792431,-500.0,0.00019556,2]
[315100990,1708817792465,-673.86,0.00019556,2]
[315100991,1708817792497,-160.35472324,0.00019556,2]
[315100992,1708817792510,-743.86286849,0.00019556,2]
[315100993,1708817792521,-294.26240827,0.00019556,2]
[315100994,1708817792530,-1.30226195,0.00019556,2]
[315100995,1708817792541,-498.69773805,0.00019556,2]
[315100996,1708817792551,-150.12156555,0.00019556,2]
[315100997,1708817792561,-176.997464,0.00019556,2]
[315100998,1708817792572,-164.84370803,0.00019556,2]
[315100999,1708817792587,-8.03726242,0.00019556,2]
[315101000,1708817792595,-475.90820017,0.00019556,2]
[315101001,1708817792606,-24.09179983,0.00019556,2]
[315101002,1708817792615,-527.46284288,0.00019556,2]
[315101003,1708817792626,-246.65715712,0.00019556,2]
[315101004,1708817792635,-253.34284288,0.00019556,2]
[315101005,1708817792647,-246.65715712,0.00019556,2]
[315101006,1708817792656,-1351.13,0.00019556,2]
[315101007,1708817792665,-300.0,0.00019556,2]
[315101008,1708817792673,-500.0,0.00019556,2]
[315101009,1708817792683,-529.71300492,0.00019556,2]
[315101010,1708817792692,-500.0,0.00019556,2]
[315101011,1708817792701,-151.0,0.00019556,2]
[315101012,1708817792709,-500.0,0.00019556,2]
[315101013,1708817792719,-500.0,0.00019556,2]
[315101014,1708817792728,-115.42983796,0.00019556,2]
[315101015,1708817792739,-384.57016204,0.00019556,2]
[315101016,1708817792749,-115.42983796,0.00019556,2]
[315101017,1708817792760,-384.57016204,0.00019556,2]
[315101018,1708817792770,-115.42983796,0.00019556,2]
[315101019,1708817792781,-500.0,0.00019556,2]
[315101020,1708817792792,-390.70016204,0.00019556,2]
[315101021,1708817792801,-109.29983796,0.00019556,2]
[315101022,1708817792813,-390.70016204,0.00019556,2]
[315101023,1708817792821,-109.29983796,0.00019556,2]
[315101024,1708817792833,-392.17761554,0.00019556,2]
[315101025,1708817792842,-107.82238446,0.00019556,2]
[315101026,1708817792853,-392.17761554,0.00019556,2]
[315101027,1708817792862,-107.82238446,0.00019556,2]
[315101028,1708817792873,-392.17761554,0.00019556,2]
[315101029,1708817837184,-6026.43,0.00019555,2]
[315101030,1708817837217,-705.21,0.00019556,2]
[315101031,1708817837250,-751.44,0.00019556,2]
[315101032,1708817837282,-500.0,0.00019556,2]
[315101033,1708817837324,-4204.02,0.00019556,2]
[315101034,1708817837365,-500.0,0.00019556,2]
[315101035,1708817837401,-500.0,0.00019556,2]
[315101036,1708817837436,-500.0,0.00019557,2]
[315101037,1708817837470,-500.0,0.00019557,2]
[315101038,1708817837508,-369.70780229,0.00019557,2]
[315101039,1708817837543,-1501.71,0.00019557,2]
[315101040,1708817837579,-382.96439542,0.00019557,2]
[315101041,1708817837593,-117.03560458,0.00019557,2]
[315101042,1708817837603,-500.0,0.00019557,2]
[315101043,1708817837612,-500.0,0.00019557,2]
[315101044,1708817837622,-886.3,0.00019557,2]
[315101045,1708817837631,-500.0,0.00019557,2]
[315101046,1708817837640,-500.0,0.00019557,2]
[315101047,1708817837649,-497.28656827,0.00019557,2]
[315101048,1708817837659,-269.88,0.0001982,3]
[315101049,1708817837667,-809.68,0.00019821,3]
[315101050,1708817837677,-500.0,0.00019829,2]
[315101051,1708817837686,-946.24782715,0.00019829,2]
[315101052,1708817837698,-705.21,0.00019829,2]
[315101053,1708817837709,-751.44,0.00019829,2]
[315101054,1708817837721,-500.0,0.00019829,2]
[315101055,1708817837733,-1595.45217285,0.00019829,2]
[315101056,1708817837742,-2608.56782715,0.00019829,2]
[315101057,1708817837753,-500.0,0.00019829,2]
[315101058,1708817837767,-500.0,0.00019829,2]
[315101059,1708817837871,-500.0,0.00019829,2]
[315101060,1708817837885,-500.0,0.00019829,2]
[315101061,1708817837898,-369.70780229,0.00019829,2]
[315101062,1708817837910,-1048.15437056,0.00019829,2]
[315101063,1708817837919,-453.55562944,0.00019829,2]
[315101064,1708817837931,-46.44437056,0.00019829,2]
[315101065,1708817837941,-453.55562944,0.0001983,2]
[315101066,1708817840674,-46.44437056,0.0001983,2]
[315101067,1708817840708,-500.0,0.0001983,2]
[315101068,1708817840744,-500.0,0.0001983,2]
[315101069,1708817840779,-500.0,0.0001983,2]
[315101070,1708817840812,-500.0,0.0001983,2]
[315101071,1708817840845,-500.0,0.0001983,2]
[315101072,1708817840878,-550.95,0.0001983,2]
[315101073,1708817840912,-500.0,0.0001983,2]
[315101074,1708817840948,-1436.27,0.0001983,2]
[315101075,1708817840982,-2898.77,0.0001983,2]
[315101076,1708817841014,-716.46,0.0001983,2]
[315101077,1708817841047,-500.0,0.0001983,2]
[315101078,1708817841081,-612.29435103,0.0001983,2]
[315101079,1708817841114,-4821.83,0.0001983,2]
[315101080,1708817841146,-1269.26,0.0001983,2]
[315101081,1708817841179,-99.41255682,0.0001983,2]
[315101082,1708817841192,-46.44437056,0.0001983,2]
[315101083,1708817841203,-500.0,0.0001983,2]
[315101084,1708817841214,-500.0,0.0001983,2]
[315101085,1708817841226,-50.17307262,0.0001983,2]
[315101086,1708817841235,-449.82692738,0.0001983,2]
[315101087,1708817841247,-271.25307262,0.0001983,2]
[315101088,1708817841256,-228.74692738,0.0001983,2]
[315101089,1708817841270,-271.25307262,0.0001983,2]
[315101090,1708817841279,-228.74692738,0.0001983,2]
[315101091,1708817841291,-271.25307262,0.0001983,2]
[315101092,1708817841300,-279.69692738,0.0001983,2]
[315101093,1708817841311,-220.30307262,0.0001983,2]
[315101094,1708817841320,-279.69692738,0.0001983,2]
[315101095,1708817841340,-394.16307262,0.0001983,2]
[315101096,1708817841350,-1042.10692738,0.0001983,2]
[315101097,1708817841372,-156.37307262,0.0001983,2]
[315101098,1708817841381,-774.12,0.0001983,2]
[315101099,1708817841390,-500.0,0.0001983,2]
[315101100,1708817841399,-1351.13,0.0001983,2]
[315101101,1708817841408,-117.14692738,0.0001983,2]
[315101102,1708817841420,-382.85307262,0.0001983,2]
[315101103,1708817841429,-333.60692738,0.0001983,2]
[315101104,1708817841440,-166.39307262,0.0001983,2]
[315101105,1708817841449,-333.60692738,0.0001983,2]
[315101106,1708817841461,-166.39307262,0.0001983,2]
[315101107,1708817841471,-445.90127841,0.0001983,2]
[315101108,1708817841485,-560.22872159,0.0001983,2]
[315101109,1708817841495,-500.0,0.0001983,2]
[315101110,1708817841504,-705.21,0.0001983,2]
[315101111,1708817841513,-751.44,0.0001983,2]
[315101112,1708817841525,-500.0,0.0001983,2]
[315101113,1708817841535,-1804.95127841,0.0001983,2]
[315101114,1708817841552,-1269.26,0.0001983,2]
[315101115,1708817841565,-1129.80872159,0.0001983,2]
[315101116,1708817841574,-66.22127841,0.00019831,2]
[315101117,1708818432135,-179.56099942,0.000189,2]
[315101118,1708818432156,-620.66014489,0.00019323,2]
[315101119,1708818432187,-235.22639127,0.00019461,2]
[315101120,1708818432213,-235.22639127,0.00019469,2]
[315101121,1708818432234,-235.22639127,0.00019477,2]
[315101122,1708818432418,-3076.78225218,0.00019555,2]
[315101123,1708818570100,-457.0,0.00019177,2]
[315101145,1708818631774,-212.55926004,0.00018899,2]
[315101147,1708818631784,-197.70935187,0.000189,2]
[315101149,1708818631793,-286.86286849,0.00019177,2]
[315101151,1708818631802,-166.666666,0.00019178,2]
[315101153,1708818631812,-169.6556243,0.00019455,2]
[315101155,1708818631822,-1078.81,0.00019546,3]
[315101157,1708818631832,-2451.34594168,0.00019555,2]
[315101160,1708818631842,-20.31032062,0.00019555,2]
[315101168,1708818637732,-2014.88,0.00019546,3]
[315101169,1708818637745,-479.68967938,0.00019555,2]
[315101170,1708818637755,-500.0,0.00019555,2]
[315101171,1708818637765,-1098.61,0.00019555,2]
[315101172,1708818637774,-500.0,0.00019555,2]
[315101173,1708818637785,-500.0,0.00019555,2]
[315101174,1708818637794,-4513.24,0.00019555,2]
[315101175,1708818637804,-500.0,0.00019555,2]
[315101176,1708818637814,-965.77,0.00019555,2]
[315101177,1708818637825,-63.39097671,0.00019555,2]
[315101178,1708818637845,-436.60902329,0.00019555,2]
[315101179,1708818637854,-644.83,0.00019555,2]
[315101180,1708818637863,-1294.91,0.00019555,2]
[315101181,1708818637872,-504.0,0.00019555,2]
[315101182,1708818637881,-500.0,0.00019555,2]
[315101183,1708818637890,-500.0,0.00019555,2]
[315101184,1708818637899,-500.0,0.00019555,2]
[315101185,1708818637908,-500.0,0.00019555,2]
[315101186,1708818637917,-500.0,0.00019555,2]
[315101187,1708818637926,-178.45790068,0.00019555,2]
[315101188,1708818637936,-6007.95,0.00019555,2]
[315101189,1708818637945,-500.0,0.00019555,2]
[315101190,1708818637954,-500.0,0.00019555,2]
[315101191,1708818637962,-3853.68,0.00019555,2]
[315101192,1708818637971,-500.0,0.00019555,2]
[315101193,1708818637980,-500.0,0.00019555,2]
[315101194,1708818637989,-1635.82,0.00019555,2]
[315101195,1708818637999,-500.0,0.00019555,2]
[315101196,1708818638008,-500.0,0.00019555,2]
[315101197,1708818638017,-500.0,0.00019555,2]
[315101198,1708818638026,-500.0,0.00019555,2]
[315101199,1708818638035,-721.47,0.00019555,2]
[315101200,1708818638045,-924.87,0.00019555,2]
[315101201,1708818638054,-500.0,0.00019555,2]
[315101202,1708818638063,-660.79,0.00019555,2]
[315101203,1708818638072,-500.0,0.00019555,2]
[315101204,1708818638081,-500.0,0.00019555,2]
[315101205,1708818638090,-500.0,0.00019556,2]
[315101206,1708818638100,-500.0,0.00019556,2]
[315101207,1708818638109,-500.0,0.00019556,2]
[315101208,1708818638118,-500.46559862,0.00019556,2]
[315101209,1708818638127,-500.39871675,0.00019556,2]
[315101210,1708818638137,-500.0,0.00019556,2]
[315101211,1708818638146,-500.0,0.00019556,2]
[315101212,1708818638155,-500.0,0.00019556,2]
[315101213,1708818638164,-500.0,0.00019556,2]
[315101214,1708818638173,-500.0,0.00019556,2]
[315101215,1708818638182,-502.33326353,0.00019556,2]
[315101216,1708818638192,-500.32198171,0.00019556,2]
[315101217,1708818638201,-500.0,0.00019556,2]
[315101218,1708818638210,-500.0,0.00019556,2]
[315101219,1708818638219,-500.0,0.00019556,2]
[315101220,1708818638228,-500.0,0.00019556,2]
[315101221,1708818638237,-500.0,0.00019556,2]
[315101222,1708818638248,-355.60770815,0.00019556,2]
[315101223,1708818638257,-500.0,0.00019556,2]
[315101224,1708818638266,-500.0,0.00019556,2]
[315101225,1708818638275,-500.0,0.00019556,2]
[315101226,1708818638284,-500.0,0.00019556,2]
[315101227,1708818638294,-500.81811233,0.00019556,2]
[315101228,1708818638304,-500.0,0.00019556,2]
[315101229,1708818638313,-500.0,0.00019556,2]
[315101230,1708818638322,-500.0,0.00019556,2]
[315101231,1708818638331,-500.0,0.00019556,2]
[315101232,1708818638340,-477.56579186,0.00019556,2]
[315101233,1708818638349,-500.0,0.00019556,2]
[315101234,1708818638358,-500.0,0.00019556,2]
[315101235,1708818638367,-500.0,0.00019556,2]
[315101236,1708818638376,-500.0,0.00019556,2]
[315101237,1708818638385,-403.29293715,0.00019556,2]
[315101238,1708818638394,-500.0,0.00019556,2]
[315101239,1708818638403,-500.0,0.00019556,2]
[315101240,1708818638413,-500.0,0.00019556,2]
[315101241,1708818638422,-500.0,0.00019556,2]
[315101242,1708818638431,-500.0,0.00019556,2]
[315101243,1708818638441,-500.0,0.00019556,2]
[315101244,1708818638450,-500.0,0.00019556,2]
[315101245,1708818638459,-500.0,0.00019556,2]
[315101246,1708818638468,-270.72050512,0.00019556,2]
[315101247,1708818638477,-707.47,0.00019556,2]
[315101248,1708818638486,-707.47,0.00019556,2]
[315101249,1708818638495,-500.0,0.00019556,2]
[315101250,1708818638504,-500.0,0.00019556,2]
[315101251,1708818638513,-500.0,0.00019556,2]
[315101252,1708818638524,-500.0,0.00019556,2]
[315101253,1708818638533,-500.0,0.00019556,2]
[315101254,1708818638542,-500.0,0.00019556,2]
[315101255,1708818638551,-500.0,0.00019556,2]
[315101256,1708818638560,-500.0,0.00019556,2]
[315101257,1708818638569,-1376.03,0.00019556,2]
[315101258,1708818638579,-686.54,0.00019556,2]
[315101259,1708818638588,-500.0,0.00019556,2]
[315101260,1708818638597,-500.0,0.00019556,2]
[315101261,1708818638606,-500.0,0.00019556,2]
[315101262,1708818638615,-1267.21,0.00019556,2]
[315101263,1708818638624,-500.0,0.00019556,2]
[315101264,1708818638633,-500.0,0.00019556,2]
[315101265,1708818638642,-500.0,0.00019556,2]
[315101266,1708818638652,-585.23182557,0.00019556,2]
[315101267,1708818638661,-500.0,0.00019556,2]
[315101268,1708818638671,-500.0,0.00019556,2]
[315101269,1708818638681,-500.0,0.00019556,2]
[315101270,1708818638690,-545.57,0.00019556,2]
[315101271,1708818638699,-500.0,0.00019556,2]
[315101272,1708818638708,-500.0,0.00019556,2]
[315101273,1708818638717,-500.0,0.00019556,2]
[315101274,1708818638726,-500.0,0.00019556,2]
[315101275,1708818638736,-500.28194284,0.00019556,2]
[315101276,1708818638748,-500.0,0.00019556,2]
[315101277,1708818638911,-500.0,0.00019556,2]
[315101278,1708818638926,-492.92581817,0.00019556,2]
[315101279,1708818638935,-500.0,0.00019556,2]
[315101280,1708818638944,-500.0,0.00019556,2]
[315101281,1708818638953,-500.0,0.00019556,2]
[315101282,1708818638962,-500.68397729,0.00019556,2]
[315101283,1708818638971,-500.0,0.00019556,2]
[315101284,1708818638980,-500.0,0.00019556,2]
[315101285,1708818638989,-500.0,0.00019556,2]
[315101286,1708818638999,-166.666666,0.00019627,2]
[315101287,1708818639008,-177.45148812,0.000197,2]
[315101288,1708818639017,-177.45148812,0.000197,2]
[315101289,1708818639026,-177.45148812,0.000197,2]
[315101290,1708818639035,-421.2025703,0.000198,2]
[315101291,1708818639044,-200.5294442,0.000198,2]
[315101292,1708818639053,-301.8299324,0.000198,2]
[315101293,1708818639062,-153.0,0.000198,2]
[315101294,1708818639072,-153.0,0.000198,2]
[315101295,1708818639083,-500.0,0.00019829,2]
[315101296,1708818639092,-707.47,0.00019829,2]
[315101297,1708818639101,-500.0,0.00019829,2]
[315101298,1708818639110,-500.0,0.00019829,2]
[315101299,1708818639119,-1098.61,0.00019829,2]
[315101300,1708818639128,-500.0,0.00019829,2]
[315101301,1708818639138,-4513.24,0.00019829,2]
[315101302,1708818639147,-965.77,0.00019829,2]
[315101303,1708818639156,-500.0,0.00019829,2]
[315101304,1708818639166,-644.83,0.00019829,2]
[315101305,1708818639175,-1294.91,0.00019829,2]
[315101306,1708818639184,-473.06117471,0.00019829,2]
[315101307,1708818639194,-500.0,0.00019829,2]
[315101308,1708818639203,-500.0,0.00019829,2]
[315101309,1708818639213,-6007.95,0.00019829,2]
[315101310,1708818639222,-500.0,0.00019829,2]
[315101311,1708818639231,-500.0,0.00019829,2]
[315101312,1708818639241,-3853.68,0.00019829,2]
[315101313,1708818639252,-500.0,0.00019829,2]
[315101314,1708818639262,-500.0,0.00019829,2]
[315101316,1708818639271,-1635.82,0.00019829,2]
[315101317,1708818639280,-500.0,0.00019829,2]
[315101318,1708818639289,-721.47,0.00019829,2]
[315101319,1708818639298,-924.87,0.00019829,2]
[315101320,1708818639307,-660.79,0.00019829,2]
[315101321,1708818639317,-500.0,0.00019829,2]
[315101322,1708818639326,-500.0,0.0001983,2]
[315101323,1708818639335,-500.0,0.0001983,2]
[315101324,1708818639345,-514.82292267,0.0001983,2]
[315101325,1708818639354,-500.0,0.0001983,2]
[315101326,1708818639363,-500.0,0.0001983,2]
[315101327,1708818639372,-500.0,0.0001983,2]
[315101328,1708818639381,-500.0,0.0001983,2]
[315101329,1708818639390,-500.0,0.0001983,2]
[315101330,1708818639399,-500.0,0.0001983,2]
[315101331,1708818639408,-500.0,0.0001983,2]
[315101332,1708818639417,-279.3313356,0.0001983,2]
[315101333,1708818639426,-707.47,0.0001983,2]
[315101334,1708818639435,-707.47,0.0001983,2]
[315101335,1708818639444,-707.47,0.0001983,2]
[315101336,1708818639453,-500.0,0.0001983,2]
[315101337,1708818639462,-500.0,0.0001983,2]
[315101338,1708818639471,-500.0,0.0001983,2]
[315101339,1708818639481,-500.0,0.0001983,2]
[315101340,1708818639490,-500.0,0.0001983,2]
[315101341,1708818639500,-500.0,0.0001983,2]
[315101342,1708818639509,-1376.03,0.0001983,2]
[315101343,1708818639518,-686.54,0.0001983,2]
[315101344,1708818639527,-1267.21,0.0001983,2]
[315101345,1708818639536,-500.0,0.0001983,2]
[315101346,1708818639544,-999.35260013,0.0001983,2]
[315101347,1708818639554,-500.0,0.0001983,2]
[315101348,1708818639563,-179.23,0.0001983,2]
[315101349,1708818639572,-1518.48968101,0.0001983,2]
[315101350,1708818639581,-500.0,0.0001983,2]
[315101351,1708818639590,-500.0,0.0001983,2]
[315101352,1708818639599,-500.0,0.0001983,2]
[315101353,1708818639608,-500.0,0.0001983,2]
[315101354,1708818639617,-41133.41772646,0.0001985,2]
[315101355,1708818639626,-500.0,0.00019894,2]
[315101356,1708818639636,-200.3907045,0.00019894,2]
[315101357,1708818639646,-500.0,0.00019894,2]
[315101358,1708818639655,-314.65712484,0.00019894,2]
[315101359,1708818639664,-500.0,0.00019894,2]
[315101360,1708818639673,-500.0,0.00019894,2]
[315101361,1708818639683,-574.84369545,0.00019894,2]
[315101362,1708818639692,-500.0,0.00019894,2]
[315101363,1708818639701,-409.82654849,0.00019894,2]
[315101364,1708818639710,-500.0,0.00019894,2]
[315101365,1708818639719,-574.84369545,0.00019894,2]
[315101366,1708818639728,-500.0,0.00019894,2]
[315101367,1708818639737,-226.05169625,0.00019894,2]
[315101368,1708818639749,-196.18567137,0.00019894,2]
[315101369,1708818639759,-500.0,0.00019894,2]
[315101370,1708818639768,-574.84369545,0.00019894,2]
[315101371,1708818639777,-500.0,0.00019894,2]
[315101372,1708818639786,-500.0,0.00019894,2]
[315101373,1708818639796,-338.49627497,0.00019894,2]
[315101374,1708818639805,-574.84369545,0.00019894,2]
[315101375,1708818639814,-500.0,0.00019894,2]
[315101376,1708818639823,-500.0,0.00019894,2]
[315101377,1708818639833,-574.84369545,0.00019894,2]
[315101378,1708818639842,-500.0,0.00019894,2]
[315101379,1708818639851,-500.0,0.00019894,2]
[315101380,1708818639860,-574.84369545,0.00019894,2]
[315101381,1708818639869,-500.0,0.00019894,2]
[315101382,1708818639879,-500.0,0.00019894,2]
[315101383,1708818639888,-574.84369545,0.00019894,2]
[315101384,1708818639897,-500.0,0.00019894,2]
[315101385,1708818639906,-500.0,0.00019894,2]
[315101386,1708818639914,-574.84369545,0.00019894,2]
[315101387,1708818639923,-500.0,0.00019894,2]
[315101388,1708818639932,-574.84369545,0.00019894,2]
[315101389,1708818639942,-500.0,0.00019894,2]
[315101390,1708818639951,-500.0,0.00019894,2]
[315101391,1708818639960,-574.84369545,0.00019894,2]
[315101392,1708818639969,-500.0,0.00019894,2]
[315101393,1708818639979,-500.0,0.00019894,2]
[315101395,1708818639988,-574.84369545,0.00019894,2]
[315101396,1708818639998,-500.0,0.00019894,2]
[315101397,1708818640007,-500.0,0.00019894,2]
[315101398,1708818640017,-574.84369545,0.00019894,2]
[315101399,1708818640026,-500.0,0.00019894,2]
[315101400,1708818640036,-574.84369545,0.00019894,2]
[315101401,1708818640045,-500.0,0.00019894,2]
[315101402,1708818640054,-574.84369545,0.00019894,2]
[315101403,1708818640063,-500.0,0.00019894,2]
[315101405,1708818640073,-574.84369545,0.00019894,2]
[315101407,1708818640082,-500.0,0.00019894,2]
[315101408,1708818640091,-574.84369545,0.00019894,2]
[315101410,1708818640100,-574.84369545,0.00019894,2]
[315101412,1708818640110,-500.0,0.00019894,2]
[315101413,1708818640118,-574.84369545,0.00019894,2]
[315101414,1708818640127,-500.0,0.00019894,2]
[315101415,1708818640136,-574.84369545,0.00019894,2]
[315101416,1708818640145,-500.0,0.00019894,2]
[315101417,1708818640154,-574.84369545,0.00019894,2]
[315101418,1708818640163,-574.84369545,0.00019894,2]
[315101419,1708818640172,-500.0,0.00019894,2]
[315101420,1708818640181,-500.0,0.00019894,2]
[315101421,1708818640190,-574.84369545,0.00019894,2]
[315101422,1708818640199,-500.0,0.00019894,2]
[315101423,1708818640208,-574.84369545,0.00019894,2]
[315101424,1708818640217,-574.84369545,0.00019894,2]
[315101425,1708818640227,-500.0,0.00019894,2]
[315101426,1708818640236,-574.84369545,0.00019894,2]
[315101427,1708818640245,-574.84369545,0.00019894,2]
[315101428,1708818640254,-500.0,0.00019894,2]
[315101429,1708818640264,-574.84369545,0.00019894,2]
[315101430,1708818640273,-500.0,0.00019894,2]
[315101431,1708818640282,-574.84369545,0.00019894,2]
[315101432,1708818640291,-500.0,0.00019894,2]
[315101433,1708818640301,-574.84369545,0.00019894,2]
[315101434,1708818640310,-500.0,0.00019894,2]
[315101435,1708818640320,-574.84369545,0.00019894,2]
[315101436,1708818640329,-574.84369545,0.00019894,2]
[315101437,1708818640338,-500.0,0.00019894,2]
[315101438,1708818640347,-574.84369545,0.00019894,2]
[315101439,1708818640357,-574.84369545,0.00019894,2]
[315101440,1708818640367,-574.84369545,0.00019894,2]
[315101441,1708818640378,-500.0,0.00019894,2]
[315101442,1708818640388,-574.84369545,0.00019894,2]
[315101443,1708818640397,-574.84369545,0.00019894,2]
[315101444,1708818640406,-500.0,0.00019894,2]
[315101445,1708818640418,-574.84369545,0.00019894,2]
[315101446,1708818640428,-574.84369545,0.00019894,2]
[315101447,1708818640438,-574.84369545,0.00019894,2]
[315101448,1708818640448,-426.83424139,0.00019894,2]
[315101449,1708818640457,-574.84369545,0.00019894,2]
[315101450,1708818640467,-574.84369545,0.00019894,2]
[315101451,1708818640478,-574.84369545,0.00019894,2]
[315101452,1708818640487,-574.84369545,0.00019894,2]
[315101453,1708818640498,-500.0,0.00019894,2]
[315101454,1708818640508,-574.84369545,0.00019894,2]
[315101455,1708818640517,-574.84369545,0.00019894,2]
[315101456,1708818640527,-574.84369545,0.00019894,2]
[315101457,1708818640537,-574.84369545,0.00019894,2]
[315101458,1708818640547,-574.84369545,0.00019894,2]
[315101459,1708818640556,-574.84369545,0.00019894,2]
[315101460,1708818640567,-574.84369545,0.00019894,2]
[315101461,1708818640577,-574.84369545,0.00019894,2]
[315101462,1708818640588,-574.84369545,0.00019894,2]
[315101463,1708818640598,-574.84369545,0.00019894,2]
[315101464,1708818640608,-574.84369545,0.00019894,2]
[315101465,1708818640618,-574.84369545,0.00019894,2]
[315101466,1708818640628,-574.84369545,0.00019894,2]
[315101467,1708818640639,-574.84369545,0.00019894,2]
[315101468,1708818640649,-574.84369545,0.00019894,2]
[315101469,1708818640657,-574.84369545,0.00019894,2]
[315101470,1708818640667,-574.84369545,0.00019894,2]
[315101471,1708818640677,-574.84369545,0.00019894,2]
[315101472,1708818640686,-574.84369545,0.00019894,2]
[315101473,1708818640696,-574.84369545,0.00019894,2]
[315101474,1708818640705,-574.84369545,0.00019894,2]
[315101475,1708818640715,-574.84369545,0.00019894,2]
[315101476,1708818640725,-574.84369545,0.00019894,2]
[315101477,1708818640734,-574.84369545,0.00019894,2]
[315101478,1708818640745,-574.84369545,0.00019894,2]
[315101479,1708818640756,-574.84369545,0.00019894,2]
[315101480,1708818640765,-574.84369545,0.00019894,2]
[315101481,1708818640774,-621.05516522,0.00019898,2]
[315101482,1708818640783,-4697.79543124,0.00019898,2]
[315101483,1708818640793,-707.47,0.00019898,2]
[315101484,1708818640802,-500.0,0.00019898,2]
[315101485,1708818640811,-500.0,0.00019899,2]
[315101486,1708818640821,-500.0,0.00019899,2]
[315101487,1708818640831,-500.0,0.00019899,2]
[315101488,1708818640841,-707.47,0.00019899,2]
[315101489,1708818640853,-500.0,0.00019899,2]
[315101490,1708818640862,-646.44,0.00019899,2]
[315101491,1708818640871,-838.86,0.00019899,2]
[315101492,1708818640880,-554.02,0.00019899,2]
[315101493,1708818640890,-740.9,0.00019899,2]
[315101494,1708818640900,-500.0,0.00019899,2]
[315101496,1708818640909,-500.0,0.00019899,2]
[315101498,1708818640918,-500.0,0.00019899,2]
[315101499,1708818640928,-500.0,0.00019899,2]
[315101501,1708818640939,-500.0,0.00019899,2]
[315101502,1708818640950,-500.0,0.00019899,2]
[315101503,1708818640959,-442.29339746,0.00019899,2]
[315101504,1708818640969,-500.0,0.00019899,2]
[315101505,1708818640979,-500.0,0.00019899,2]
[315101506,1708818640990,-500.73890454,0.00019899,2]
[315101507,1708818641001,-500.0,0.00019899,2]
[315101508,1708818641010,-554.09,0.00019899,2]
[315101510,1708818641019,-500.0,0.00019899,2]
[315101512,1708818641028,-2925.83,0.00019899,2]
[315101513,1708818641037,-500.0,0.00019899,2]
[315101514,1708818641047,-1328.61,0.00019899,2]
[315101515,1708818641056,-4862.58,0.00019899,2]
[315101516,1708818641065,-1202.81,0.00019899,2]
[315101517,1708818641075,-500.0,0.00019899,2]
[315101518,1708818641085,-500.0,0.00019899,2]
[315101519,1708818641095,-500.0,0.00019899,2]
[315101520,1708818641104,-107816.92932919,0.000199,2]
[315101521,1708818641113,-155.0617264,0.000199,2]
[315101522,1708818641123,-295.0964825,0.000199,2]
[315101523,1708818641131,-153.0,0.000199,2]
[315101524,1708818641140,-34315.6492,0.000199,2]
[315101525,1708818641150,-285.1445207,0.00019998,2]